bitfinex-derivatives/quotes_BNBF0:USTF0_20250302
["timestamp","ask_amount","ask_price","bid_price","bid_amount"]
[1740917479872,1.13410816,606.79,606.41,4.94980986]
[1740917480268,1.13410816,606.78,606.41,4.94980986]
[1740917480668,1.72125978,606.81,606.41,4.94980986]
[1740917480669,1.13410816,606.77,606.41,4.94980986]
[1740917480873,1.72125978,606.81,606.41,4.94980986]
[1740917481273,1.4344323,606.88,606.41,4.94980986]
[1740917481475,1.13416521,606.8,606.41,4.94980986]
[1740917482176,1.13416521,606.79,606.41,4.94980986]
[1740917482774,1.13416521,606.78,606.41,4.94980986]
[1740917483174,1.13416521,606.77,606.41,4.94980986]
[1740917483772,1.72125978,606.81,606.41,4.94980986]
[1740917484170,1.13387145,606.8,606.41,4.94980986]
[1740917484675,1.13387145,606.79,606.41,4.94980986]
[1740917485076,1.13387145,606.78,606.41,4.94980986]
[1740917485470,1.72122431,606.84,606.41,4.94980986]
[1740917486177,1.13372811,606.83,606.41,4.94980986]
[1740917487078,1.13372811,606.82,606.41,4.94980986]
[1740917487679,1.13372811,606.81,606.41,4.94980986]
[1740917487880,1.72119593,606.85,606.41,4.94980986]
[1740917487881,1.13372811,606.8,606.41,4.94980986]
[1740917488582,1.13372811,606.79,606.41,4.94980986]
[1740917488882,1.13372811,606.78,606.41,4.94980986]
[1740917489279,1.13372811,606.77,606.41,4.94980986]
[1740917489884,1.72119593,606.85,606.41,4.94980986]
[1740917490384,1.13360072,606.84,606.41,4.94980986]
[1740917491084,1.13360072,606.83,606.41,4.94980986]
[1740917491284,1.13360072,606.82,606.41,4.94980986]
[1740917492082,1.13360072,606.81,606.41,4.94980986]
[1740917492478,1.13360072,606.8,606.41,4.94980986]
[1740917493083,1.13360072,606.79,606.41,4.94980986]
[1740917493585,1.13360072,606.78,606.41,4.94980986]
[1740917493985,1.13360072,606.77,606.41,4.94980986]
[1740917494387,1.13360072,606.76,606.41,4.94980986]
[1740917494882,1.13360072,606.75,606.41,4.94980986]
[1740917495191,1.13360072,606.74,606.41,4.94980986]
[1740917495688,1.13360072,606.73,606.41,4.94980986]
[1740917495883,1.13360072,606.72,606.41,4.94980986]
[1740917496282,1.13360072,606.72,606.41,0.32980986]
[1740917496580,1.13360072,606.71,606.41,0.32980986]
[1740917497183,1.13360072,606.7,606.41,0.32980986]
[1740917497882,1.72135202,606.79,606.41,0.32980986]
[1740917498684,1.13298473,606.78,606.41,0.32980986]
[1740917499083,1.13298473,606.77,606.41,0.32980986]
[1740917499288,1.13298473,606.76,606.41,0.32980986]
[1740917499487,1.13298473,606.76,606.41,4.73480986]
[1740917499886,1.13298473,606.75,606.41,4.73480986]
[1740917500288,1.13298473,606.74,606.41,4.73480986]
[1740917500984,1.72172816,606.79,606.41,4.73480986]
[1740917500985,1.13298473,606.73,606.41,4.73480986]
[1740917501390,1.72172816,606.79,606.41,4.73480986]
[1740917501391,1.13298473,606.72,606.41,4.73480986]
[1740917501790,1.72172816,606.79,606.41,4.73480986]
[1740917502383,0.7477493,607.68,606.41,4.73480986]
[1740917502384,1.13298308,606.78,606.41,4.73480986]
[1740917503292,1.13298308,606.77,606.41,4.73480986]
[1740917503691,1.13298308,606.76,606.41,4.73480986]
[1740917504389,1.13298308,606.75,606.41,4.73480986]
[1740917505093,1.72124559,606.83,606.41,4.73480986]
[1740917505094,1.13298308,606.74,606.41,4.73480986]
[1740917505494,1.72134492,606.78,606.41,4.73480986]
[1740917505993,1.13301822,606.77,606.41,4.73480986]
[1740917506689,1.13301822,606.76,606.41,4.73480986]
[1740917507492,1.13301822,606.75,606.41,4.73480986]
[1740917508291,1.13301822,606.74,606.41,4.73480986]
[1740917508990,1.72134492,606.78,606.41,4.73480986]
[1740917509393,1.13308648,606.77,606.41,4.73480986]
[1740917509999,1.72134492,606.78,606.41,4.73480986]
[1740917510000,1.13308648,606.76,606.41,4.73480986]
[1740917510695,1.13308648,606.75,606.41,4.73480986]
[1740917511395,1.13308648,606.74,606.41,4.73480986]
[1740917512001,1.13308648,606.73,606.41,4.73480986]
[1740917512501,1.13308648,606.72,606.41,4.73480986]
[1740917512996,1.13308648,606.72,606.41,4.16080986]
[1740917513200,1.13308648,606.71,606.41,4.16080986]
[1740917513496,1.13308648,606.71,606.41,2.96280986]
[1740917513703,1.13308648,606.7,606.41,2.96280986]
[1740917514203,1.13301473,606.69,606.41,2.96280986]
[1740917514600,1.13301473,606.68,606.41,2.96280986]
[1740917515201,1.72130235,606.81,606.41,2.96280986]
[1740917515401,1.43294622,606.8,606.41,2.96280986]
[1740917515704,2.56593157,606.8,606.41,2.96280986]
[1740917515904,1.13298535,606.8,606.41,2.96280986]
[1740917516104,1.13298535,606.79,606.41,3.53680986]
[1740917516406,1.13298535,606.78,606.41,3.53680986]
[1740917516808,1.13298535,606.77,606.41,5.05280986]
[1740917517601,2.85435866,606.76,606.41,5.05280986]
[1740917518202,1.13298535,606.75,606.41,5.05280986]
[1740917518401,1.13298535,606.74,606.41,5.05280986]
[1740917519006,1.13298535,606.73,606.41,5.05280986]
[1740917520001,1.13298535,606.72,606.41,5.05280986]
[1740917520209,1.72137331,606.76,606.41,5.05280986]
[1740917520607,1.13286383,606.75,606.41,5.05280986]
[1740917521204,1.72137331,606.76,606.41,5.05280986]
[1740917521205,1.13286383,606.74,606.41,5.05280986]
[1740917521406,1.72137331,606.76,606.41,5.05280986]
[1740917521805,1.13294262,606.75,606.41,5.05280986]
[1740917522213,1.13294262,606.74,606.41,5.05280986]
[1740917522710,1.13294262,606.73,606.41,5.05280986]
[1740917523205,1.72137331,606.76,606.41,5.05280986]
[1740917523403,0.98190931,607.02,606.41,5.05280986]
[1740917523404,3.03665217,606.92,606.41,5.05280986]
[1740917523604,1.13311085,606.75,606.41,5.05280986]
[1740917524010,1.13311085,606.74,606.41,5.05280986]
[1740917524407,1.13311085,606.73,606.41,5.05280986]
[1740917525009,1.72135912,606.77,606.41,5.05280986]
[1740917525406,1.13326993,606.76,606.41,5.05280986]
[1740917526010,1.13326993,606.75,606.41,5.05280986]
[1740917526508,1.13326993,606.74,606.41,5.05280986]
[1740917526907,1.13326993,606.73,606.41,5.05280986]
[1740917527311,1.13326993,606.72,606.41,5.05280986]
[1740917527810,1.13326993,606.72,606.41,3.89680986]
[1740917528212,1.72135912,606.77,606.41,3.89680986]
[1740917528711,1.13368954,606.76,606.41,3.89680986]
[1740917529610,1.13368954,606.75,606.41,3.89680986]
[1740917530011,1.13368954,606.74,606.41,3.89680986]
[1740917530712,1.13368954,606.73,606.41,3.89680986]
[1740917530906,1.13368954,606.73,606.41,5.06980986]
[1740917531305,1.13368954,606.72,606.41,5.06980986]
[1740917531812,1.13368954,606.71,606.41,3.59280986]
[1740917532409,1.13368954,606.7,606.41,3.59280986]
[1740917533013,1.13368954,606.69,606.41,3.59280986]
[1740917533910,1.13368954,606.68,606.41,3.59280986]
[1740917534313,1.72135912,606.79,606.41,3.59280986]
[1740917534517,1.43477299,606.78,606.41,3.59280986]
[1740917534712,1.43477299,606.77,606.41,4.95880986]
[1740917534910,1.13442643,606.76,606.41,4.95880986]
[1740917535510,1.13442643,606.75,606.41,4.95880986]
[1740917535714,1.13442643,606.74,606.41,4.95880986]
[1740917536318,1.13442643,606.73,606.41,4.95880986]
[1740917536924,1.13442643,606.72,606.41,4.95880986]
[1740917537313,1.13442643,606.71,606.41,3.44280986]
[1740917537816,1.13442643,606.7,606.41,3.44280986]
[1740917538214,1.13442643,606.69,606.41,3.44280986]
[1740917538617,1.13442643,606.68,606.41,3.44280986]
[1740917539118,1.13442643,606.67,606.41,3.44280986]
[1740917539515,1.13442643,606.66,606.41,3.44280986]
[1740917540420,1.13442643,606.65,606.41,3.44280986]
[1740917541119,1.13442643,606.64,606.41,3.44280986]
[1740917541619,1.13442643,606.63,606.41,3.44280986]
[1740917542017,1.13442643,606.63,606.41,1.69580986]
[1740917542418,1.13442643,606.62,606.41,1.69580986]
[1740917542815,1.72155071,606.69,606.41,1.69580986]
[1740917543216,1.13443933,606.68,606.41,1.69580986]
[1740917543718,1.13443933,606.67,606.41,1.69580986]
[1740917544518,1.13443933,606.66,606.41,1.69580986]
[1740917544718,1.13443933,606.65,606.41,1.69580986]
[1740917545113,1.13443933,606.64,606.41,1.69580986]
[1740917545717,1.13443933,606.63,606.41,1.69580986]
[1740917546019,1.13443933,606.62,606.41,1.69580986]
[1740917546519,1.72152942,606.69,606.41,1.69580986]
[1740917546820,1.13461682,606.68,606.41,1.69580986]
[1740917547219,1.13461682,606.67,606.41,1.69580986]
[1740917547613,1.13461682,606.66,606.41,1.69580986]
[1740917548114,1.13461682,606.65,606.41,1.69580986]
[1740917549013,1.13461682,606.64,606.41,1.69580986]
[1740917549319,1.13461682,606.63,606.41,1.69580986]
[1740917550114,1.13461682,606.62,606.41,1.69580986]
[1740917550914,1.72156491,606.69,606.41,1.69580986]
[1740917550915,1.13461682,606.61,606.41,1.69580986]
[1740917551519,1.72156491,606.69,606.41,1.69580986]
[1740917552520,1.13468729,606.68,606.41,1.69580986]
[1740917552917,1.13468729,606.68,606.41,0.32980986]
[1740917553119,1.13468729,606.67,606.41,0.32980986]
[1740917553517,1.13468729,606.66,606.41,0.32980986]
[1740917553920,1.13468729,606.65,606.41,0.32980986]
[1740917554620,1.13468729,606.64,606.41,0.32980986]
[1740917555123,1.72156491,606.69,606.41,0.32980986]
[1740917555124,1.13468729,606.63,606.41,0.32980986]
[1740917555625,1.13468729,606.62,606.41,0.32980986]
[1740917556022,1.13468729,606.61,606.41,0.32980986]
[1740917556424,3.03955898,606.88,606.41,0.32980986]
[1740917556618,3.03955898,606.87,606.41,0.32980986]
[1740917556824,1.72162169,606.69,606.41,0.32980986]
[1740917557022,1.6050934,606.85,606.41,0.32980986]
[1740917557225,1.7215791,606.68,606.41,0.32980986]
[1740917557618,1.60504143,606.82,606.41,0.32980986]
[1740917557823,1.7215862,606.68,606.41,0.32980986]
[1740917558024,2.11703017,606.87,606.41,0.32980986]
[1740917558224,1.7215862,606.68,606.41,0.32980986]
[1740917558424,1.13416125,606.87,606.41,0.32980986]
[1740917558621,3.03942715,606.86,606.41,0.32980986]
[1740917558827,1.7215862,606.68,606.41,0.32980986]
[1740917559022,1.60503807,606.85,606.41,0.32980986]
[1740917559223,1.7215862,606.69,606.41,0.32980986]
[1740917559526,1.60503807,606.85,606.41,0.32980986]
[1740917559727,3.0394348,606.84,606.41,0.32980986]
[1740917560028,4.17359605,606.83,606.41,0.32980986]
[1740917560227,3.0394348,606.82,606.41,0.32980986]
[1740917560428,3.0394348,606.81,606.41,0.32980986]
[1740917560628,4.17359605,606.8,606.41,0.32980986]
[1740917560828,3.0394348,606.79,606.41,0.32980986]
[1740917561028,3.0394348,606.78,606.41,0.32980986]
[1740917561330,3.0394348,606.77,606.41,0.32980986]
[1740917561525,3.0394348,606.76,606.41,0.32980986]
[1740917561726,3.0394348,606.75,606.41,0.32980986]
[1740917562024,4.17312966,606.74,606.41,0.32980986]
[1740917562226,3.03896841,606.73,606.34,1.498]
[1740917562428,2.73892714,606.72,606.34,1.498]
[1740917562726,3.03854102,606.71,606.34,1.498]
[1740917563028,3.03854102,606.7,606.34,1.498]
[1740917563228,3.03854102,606.69,606.34,1.498]
[1740917563525,3.03854102,606.68,606.34,1.498]
[1740917563722,3.03854102,606.67,606.34,1.498]
[1740917563922,3.03854102,606.66,606.34,1.498]
[1740917564123,3.03854102,606.65,606.34,1.498]
[1740917564428,4.17270227,606.64,606.33,2.219]
[1740917564627,1.43377513,606.63,606.33,2.219]
[1740917564826,1.13416125,606.64,606.33,2.219]
[1740917565029,1.13416125,606.62,606.33,2.219]
[1740917565628,1.72180625,606.61,606.33,2.219]
[1740917565822,2.8559675,606.61,606.33,2.219]
[1740917566220,1.13416125,606.6,606.33,2.219]
[1740917566828,1.13416125,606.59,606.33,2.219]
[1740917567223,1.13416125,606.58,606.33,2.219]
[1740917568025,1.13416125,606.57,606.33,2.219]
[1740917568424,1.13416125,606.56,606.33,2.219]
[1740917568629,2.85605979,606.56,606.33,2.219]
[1740917569030,1.13416125,606.55,606.33,2.219]
[1740917569634,1.13416125,606.54,606.33,2.219]
[1740917570031,1.13416125,606.53,606.33,2.219]
[1740917570633,1.13416125,606.52,606.33,2.219]
[1740917570929,1.13416125,606.51,606.33,2.219]
[1740917571132,1.13416125,606.5,606.33,0.574]
[1740917571333,1.13416125,606.5,606.3,1.332]
[1740917571532,1.12218852,606.5,606.3,1.332]
[1740917571936,1.72198375,606.51,606.3,1.332]
[1740917574431,3.03008212,606.77,606.3,1.332]
[1740917574631,1.72201925,606.5,606.3,1.332]
[1740917574834,3.03008212,606.75,606.3,1.332]
[1740917575037,1.72218259,606.49,606.3,1.332]
[1740917575434,3.03008212,606.72,606.3,1.332]
[1740917575733,3.03008212,606.71,606.3,1.332]
[1740917575937,5.88320615,613.96,606.3,1.332]
[1740917575938,3.03008212,606.7,606.3,1.332]
[1740917576144,3.03008212,606.69,606.3,1.332]
[1740917576335,3.03008212,606.68,606.3,1.332]
[1740917576538,3.03008212,606.67,606.3,1.332]
[1740917576737,3.03008212,606.66,606.3,1.332]
[1740917576935,3.03008212,606.65,606.3,1.332]
[1740917577139,1.60005059,606.64,606.3,1.332]
[1740917577439,1.60005059,606.66,606.3,1.332]
[1740917577739,1.72202635,606.63,606.3,1.332]
[1740917578338,4.75210847,606.63,606.3,1.332]
[1740917578540,3.03008212,606.62,606.3,1.332]
[1740917580542,1.60005059,606.61,606.3,1.332]
[1740917580738,1.72209736,606.61,606.3,1.332]
[1740917583439,3.02348727,606.8,606.3,1.332]
[1740917583643,2.8500035,606.6,606.3,1.332]
[1740917583842,1.5962732,606.59,606.3,1.332]
[1740917584039,4.15050924,606.59,606.26,1.382]
[1740917584344,3.31801394,606.58,606.26,1.382]
[1740917584541,1.12789904,606.57,606.26,1.382]
[1740917585142,1.12789904,606.56,606.26,1.382]
[1740917585736,1.12789904,606.55,606.26,1.382]
[1740917586145,1.12789904,606.54,606.26,1.382]
[1740917586644,2.85006742,606.53,606.26,1.382]
[1740917587042,1.12789904,606.52,606.26,1.382]
[1740917587639,1.12789904,606.51,606.26,1.382]
[1740917588352,1.12789904,606.5,606.26,1.382]
[1740917588841,1.12789904,606.49,606.26,1.382]
[1740917589239,1.12789904,606.48,606.26,1.382]
[1740917589647,2.85013134,606.48,606.26,1.382]
[1740917589844,1.12789904,606.47,606.26,1.382]
[1740917590550,1.12789904,606.46,606.26,1.382]
[1740917590750,1.12789904,606.45,606.26,1.382]
[1740917591445,1.12789904,606.44,606.26,1.382]
[1740917591650,1.12789904,606.44,606.21,1.203]
[1740917592146,1.7222323,606.48,606.21,1.203]
[1740917592450,1.46427095,607.63,606.21,1.203]
[1740917592451,1.12656362,606.43,606.21,1.203]
[1740917592844,1.12656362,606.42,606.21,1.203]
[1740917593044,1.72248804,606.47,606.21,1.203]
[1740917593045,1.12656362,606.41,606.21,1.203]
[1740917593551,1.12656362,606.4,606.21,1.203]
[1740917594045,1.12656362,606.39,606.21,1.203]
[1740917594452,1.12656362,606.46,606.21,1.203]
[1740917595046,1.12656362,606.45,606.21,1.203]
[1740917595448,1.12656362,606.44,606.21,1.203]
[1740917595853,1.12656362,606.43,606.21,1.203]
[1740917596451,1.12656362,606.42,606.21,1.203]
[1740917596847,1.72248804,606.47,606.21,1.203]
[1740917596848,1.12656362,606.46,606.21,1.203]
[1740917597449,1.12656362,606.45,606.21,1.203]
[1740917598253,1.12656362,606.44,606.21,1.203]
[1740917599057,1.12656362,606.43,606.21,1.203]
[1740917599252,1.12656362,606.46,606.21,1.203]
[1740917599755,1.12656362,606.45,606.21,1.203]
[1740917600257,1.72248804,606.47,606.21,1.203]
[1740917601355,1.12656362,606.5,606.21,1.203]
[1740917601558,1.72223941,606.46,606.21,1.203]
[1740917604260,1.12656362,606.56,606.21,1.203]
[1740917604759,1.72216128,606.45,606.21,1.203]
[1740917604960,1.12656362,606.55,606.21,1.203]
[1740917605160,1.12656362,606.54,606.21,1.203]
[1740917605561,1.12656362,606.53,606.21,1.203]
[1740917605962,1.12656362,606.52,606.21,1.203]
[1740917606363,1.12656362,606.51,606.21,1.203]
[1740917606962,1.12656362,606.5,606.21,1.203]
[1740917607863,1.12656362,606.49,606.21,1.203]
[1740917608161,1.12656362,606.48,606.21,1.203]
[1740917608563,1.12656362,606.47,606.21,1.203]
[1740917608961,1.12656362,606.46,606.21,1.203]
[1740917609566,1.12656362,606.54,606.21,1.203]
[1740917609967,1.12656362,606.53,606.21,1.203]
[1740917610668,2.84878882,606.52,606.21,1.203]
[1740917610970,1.12656362,606.51,606.21,1.203]
[1740917611470,1.12656362,606.5,606.21,1.203]
[1740917612269,1.12656362,606.49,606.21,1.203]
[1740917612770,1.12656362,606.48,606.21,1.203]
[1740917612969,1.12656362,606.47,606.21,1.203]
[1740917613471,1.12656362,606.46,606.21,1.203]
[1740917614072,1.12656362,606.45,606.21,1.203]
[1740917614269,1.12656362,606.45,606.19,1.301]
[1740917614666,1.12656362,606.44,606.19,1.301]
[1740917615473,1.12656362,606.43,606.19,1.301]
[1740917615668,1.12656362,606.42,606.19,1.301]
[1740917616072,1.12656362,606.41,606.19,1.301]
[1740917616469,1.12656362,606.4,606.19,1.301]
[1740917617068,1.12656362,606.39,606.19,1.301]
[1740917617771,1.12656362,606.38,606.19,1.301]
[1740917618171,1.72226782,606.41,606.19,1.301]
[1740917618767,1.12872292,606.4,606.19,1.301]
[1740917619369,1.12872292,606.39,606.19,1.301]
[1740917619871,1.12872292,606.38,606.19,1.301]
[1740917621074,1.12872292,606.38,606.15,0.574]
[1740917621572,1.12872292,606.38,606.15,0.56441447]
[1740917622673,2.85122517,606.37,606.15,0.56441447]
[1740917623071,1.12872292,606.36,606.15,0.56441447]
[1740917623670,1.12872292,606.35,606.15,0.56441447]
[1740917624079,1.12872292,606.34,606.15,0.56441447]
[1740917624673,1.12872292,606.33,606.15,0.56441447]
[1740917624874,1.12872292,606.32,606.15,0.56441447]
[1740917625677,1.12872292,606.31,606.15,0.56441447]
[1740917625977,1.12872292,606.3,606.15,0.56441447]
[1740917626476,1.12872292,606.29,606.15,0.56441447]
[1740917627377,1.12872292,606.28,606.15,0.56441447]
[1740917628181,1.12872292,606.27,606.15,0.56441447]
[1740917628677,1.72252356,606.39,606.15,0.56441447]
[1740917628875,1.72252356,606.39,606.03,1.127]
[1740917629079,1.13097828,606.38,606.03,1.127]
[1740917629780,1.13097828,606.37,606.03,1.127]
[1740917630376,1.13097828,606.36,606.03,1.127]
[1740917631379,1.13097828,606.35,606.03,1.127]
[1740917631582,1.13097828,606.34,606.03,1.127]
[1740917631782,1.13097828,606.34,606.03,2.88]
[1740917631982,1.13097828,606.33,606.03,2.88]
[1740917632683,1.13097828,606.32,606.03,2.88]
[1740917633081,1.13097828,606.31,606.03,2.88]
[1740917633683,1.13097828,606.3,606.03,2.88]
[1740917634085,1.13097828,606.29,606.03,2.88]
[1740917634586,3.03527101,606.62,606.03,2.88]
[1740917634779,1.72248093,606.43,606.03,2.88]
[1740917634980,3.03527101,606.42,606.03,2.88]
[1740917635185,1.43251615,606.41,606.03,2.88]
[1740917635381,1.43251615,606.4,606.03,2.88]
[1740917635580,1.13249846,606.41,606.03,2.88]
[1740917635783,1.43253332,606.4,606.03,2.88]
[1740917635980,1.13249846,606.4,606.03,2.88]
[1740917636478,1.13249846,606.39,606.03,2.88]
[1740917637088,1.13249846,606.38,606.03,2.88]
[1740917637684,3.43308828,607.34,606.03,2.88]
[1740917637685,1.13249846,606.37,606.03,2.88]
[1740917638281,1.13249846,606.36,606.03,2.88]
[1740917638886,1.13249846,606.35,606.03,2.88]
[1740917639084,1.72240278,606.44,606.03,2.88]
[1740917639085,1.13249846,606.34,606.03,2.88]
[1740917639689,1.13249846,606.33,606.03,2.88]
[1740917639991,1.13249846,606.32,606.03,2.88]
[1740917640589,1.13249846,606.31,606.03,2.88]
[1740917641090,1.13249846,606.3,606.03,2.88]
[1740917641683,1.13249846,606.29,606.03,2.88]
[1740917641884,1.13249846,606.28,606.03,2.88]
[1740917642284,1.72251646,606.39,606.03,2.88]
[1740917642591,1.43206922,606.38,606.03,2.88]
[1740917642891,1.13215282,606.37,606.03,2.88]
[1740917643292,1.13215282,606.36,606.03,2.88]
[1740917643691,1.13215282,606.35,606.03,2.88]
[1740917644691,1.13215282,606.34,606.03,2.88]
[1740917644991,1.13215282,606.34,605.96,1.599]
[1740917645191,1.13215282,606.33,605.96,1.599]
[1740917645387,1.13215282,606.32,605.96,1.599]
[1740917646292,1.13215282,606.31,605.96,1.599]
[1740917646690,1.13215282,606.3,605.96,1.599]
[1740917647093,1.72251646,606.43,605.96,1.599]
[1740917647094,1.13215282,606.29,605.96,1.599]
[1740917647593,1.4321572,606.42,605.96,1.599]
[1740917647789,1.72251646,606.43,605.96,1.599]
[1740917647990,1.43213767,606.42,605.96,1.599]
[1740917648191,1.13222388,606.42,605.97,3.01]
[1740917648492,1.13222388,606.41,605.97,3.01]
[1740917649192,1.13222388,606.4,605.97,3.01]
[1740917649592,0.98138684,606.66,605.97,3.01]
[1740917649593,1.13222388,606.39,605.97,3.01]
[1740917650389,1.13222388,606.38,605.97,3.01]
[1740917650790,1.13222388,606.37,605.97,3.01]
[1740917651185,1.13222388,606.36,605.97,3.01]
[1740917651588,1.13222388,606.35,605.97,3.01]
[1740917651985,1.13222388,606.34,605.97,3.01]
[1740917652392,1.13222388,606.33,605.97,3.01]
[1740917652994,1.13222388,606.32,605.97,3.01]
[1740917653391,1.13222388,606.31,605.97,3.01]
[1740917653997,1.13222388,606.3,605.97,3.01]
[1740917654596,1.13222388,606.29,605.97,3.01]
[1740917655190,1.13222388,606.28,605.97,3.01]
[1740917655691,1.13222388,606.27,605.97,3.01]
[1740917655893,1.72244541,606.46,605.97,3.01]
[1740917655894,1.13222388,606.26,605.97,3.01]
[1740917656491,1.13222388,606.25,605.97,3.01]
[1740917656897,1.13222388,606.24,605.97,3.01]
[1740917657492,1.13222388,606.23,605.97,3.01]
[1740917658301,1.13222388,606.22,605.97,3.01]
[1740917658600,3.0356794,606.4,605.97,3.01]
[1740917658801,1.72270121,606.34,605.97,3.01]
[1740917659002,2.56547173,606.33,605.97,3.01]
[1740917659201,1.13274565,606.33,605.97,3.01]
[1740917659400,1.13274565,606.32,605.97,1.827]
[1740917660000,1.13274565,606.31,605.97,1.827]
[1740917660600,1.13274565,606.3,605.97,1.827]
[1740917661203,1.13274565,606.29,605.97,1.827]
[1740917661804,1.13274565,606.28,605.97,1.827]
[1740917662204,1.13274565,606.27,605.97,1.827]
[1740917662404,1.13274565,606.26,605.97,1.827]
[1740917662802,1.13274565,606.25,605.97,1.827]
[1740917663311,1.13274565,606.24,605.97,1.827]
[1740917664103,1.72262304,606.36,605.97,1.827]
[1740917664307,2.4155886,606.71,605.97,1.827]
[1740917664508,4.17098146,606.7,605.97,1.827]
[1740917664810,3.03759265,606.69,605.97,1.827]
[1740917665009,3.03759265,606.68,605.97,1.827]
[1740917665316,4.17098146,606.67,605.98,0.565]
[1740917665507,1.60399265,606.66,605.98,0.565]
[1740917665704,1.13338881,606.67,605.98,0.565]
[1740917665705,3.03761409,606.65,605.98,0.565]
[1740917665909,3.03761409,606.64,605.98,0.565]
[1740917666109,3.03761409,606.63,605.98,0.565]
[1740917666407,4.1710029,606.62,605.98,0.565]
[1740917666612,3.03761409,606.61,605.98,0.565]
[1740917666807,4.1710029,606.6,605.98,0.565]
[1740917667010,3.03761409,606.59,605.98,0.565]
[1740917667210,3.03761409,606.58,605.98,0.565]
[1740917667410,3.0378451,606.57,605.98,0.565]
[1740917667710,3.0378451,606.56,605.98,0.565]
[1740917667913,3.0378451,606.55,605.98,0.565]
[1740917668211,3.0378451,606.54,605.98,0.565]
[1740917668511,4.17123391,606.53,605.98,0.565]
[1740917668707,3.0378451,606.52,605.98,0.565]
[1740917669010,3.0378451,606.51,605.98,0.565]
[1740917669211,3.0378451,606.5,605.98,0.565]
[1740917669406,1.60399265,606.49,605.98,0.565]
[1740917669614,2.56695006,606.48,605.98,0.565]
[1740917669811,1.13338881,606.48,605.98,0.565]
[1740917670712,1.13338881,606.47,605.99,0.33003844]
[1740917671512,1.13338881,606.46,605.99,0.33003844]
[1740917672114,1.13338881,606.45,605.99,0.33003844]
[1740917672614,1.72217548,606.59,605.99,0.33003844]
[1740917672817,1.4327611,606.58,605.99,0.33003844]
[1740917673018,1.72217548,606.59,605.99,0.33003844]
[1740917673221,1.13268779,606.57,605.99,0.33003844]
[1740917673622,1.13268779,606.57,606.0,1.373]
[1740917673818,1.13268779,606.56,606.01,0.33002755]
[1740917674416,1.13268779,606.55,606.01,0.33002755]
[1740917674723,1.13268779,606.55,606.02,1.221]
[1740917675021,1.13268779,606.54,606.02,1.221]
[1740917675216,1.13268779,606.53,606.02,1.221]
[1740917675821,1.13268779,606.52,606.02,1.221]
[1740917676022,1.13268779,606.51,606.02,1.221]
[1740917676818,2.85496271,606.5,606.02,1.221]
[1740917677018,1.13268779,606.49,606.02,1.221]
[1740917677622,1.13268779,606.48,606.02,1.221]
[1740917678322,1.13268779,606.47,606.02,1.221]
[1740917679133,1.13268779,606.46,606.02,1.221]
[1740917679528,1.13268779,606.45,606.02,1.221]
[1740917680128,1.72226782,606.51,606.02,1.221]
[1740917680129,1.13268779,606.44,606.02,1.221]
[1740917681332,1.13268779,606.43,606.02,1.221]
[1740917681727,1.13268779,606.42,606.02,1.221]
[1740917682431,1.13268779,606.41,606.02,1.221]
[1740917682629,2.8551261,606.41,606.02,1.221]
[1740917683229,1.13268779,606.4,606.02,1.221]
[1740917683430,1.13268779,606.4,606.02,1.786]
[1740917683627,1.13268779,606.39,606.02,1.786]
[1740917684131,1.13268779,606.38,606.02,1.786]
[1740917684731,1.13268779,606.37,606.02,1.786]
[1740917685332,1.13268779,606.36,606.02,1.786]
[1740917685731,1.13268779,606.35,606.02,1.786]
[1740917686434,1.13268779,606.34,606.02,1.786]
[1740917687027,1.72255198,606.37,606.02,1.786]
[1740917687631,1.13109134,606.36,606.02,3.553]
[1740917688228,1.72255198,606.37,606.02,3.553]
[1740917688229,1.13109134,606.35,606.02,3.553]
[1740917688629,3.03140178,606.65,606.02,3.553]
[1740917688936,1.13103165,606.34,606.02,3.553]
[1740917689130,1.43068993,606.63,606.02,3.553]
[1740917689335,1.72256619,606.36,606.02,3.553]
[1740917689634,3.0314079,606.61,606.02,3.553]
[1740917689831,1.72250935,606.39,606.02,3.553]
[1740917690028,1.13103165,606.38,606.02,3.553]
[1740917690633,1.13103165,606.37,606.02,3.553]
[1740917690834,1.13103165,606.36,606.02,3.553]
[1740917691430,1.13103165,606.35,606.02,3.553]